fUST/lending_fUST_20250101
["ID","MTS","AMOUNT","RATE_DAILY","PERIOD"]
[347315241,1735681843060,-500.0,0.00021369,3]
[347315242,1735681843069,-522.2,0.00021369,3]
[347315243,1735681843079,-618.94,0.00021369,3]
[347315244,1735681843089,-500.0,0.00021369,3]
[347315245,1735681843098,-2189.99,0.00021369,3]
[347315246,1735681843107,-791.33,0.00021369,3]
[347315247,1735681843117,-500.0,0.00021369,3]
[347315248,1735681843126,-1039.41,0.00021369,3]
[347315249,1735681843135,-1645.65,0.00021369,3]
[347315250,1735681843145,-500.0,0.00021369,3]
[347315251,1735681843154,-500.0,0.00021369,3]
[347315253,1735681843164,-500.0,0.00021369,3]
[347315256,1735681843173,-500.0,0.00021369,3]
[347315258,1735681843183,-1047.88,0.00021369,3]
[347315260,1735681843192,-500.0,0.00021369,3]
[347315262,1735681843201,-500.0,0.00021369,3]
[347315264,1735681843211,-2742.12,0.00021369,3]
[347315265,1735681843220,-4620.02,0.00021369,3]
[347315266,1735681843229,-795.997,0.0002137,2]
[347315267,1735681843238,-10189.67419014,0.00021514,2]
[347315268,1735681843247,-2762.9319105,0.00021525,5]
[347315269,1735681843256,-158.281406,0.00021543,2]
[347315270,1735681843265,-618.0,0.000216,2]
[347315272,1735681843274,-600.0,0.00021614,2]
[347315274,1735681843283,-500.0,0.00021643,3]
[347315276,1735681843292,-500.0,0.00021643,3]
[347315277,1735681843301,-500.0,0.00021643,3]
[347315278,1735681843311,-500.0,0.00021643,3]
[347315279,1735681843320,-500.0,0.00021643,3]
[347315280,1735681843329,-600.3,0.00021643,3]
[347315281,1735681843339,-500.0,0.00021643,3]
[347315282,1735681843348,-500.0,0.00021643,3]
[347315283,1735681843357,-2869.51,0.00021643,3]
[347315284,1735681843367,-500.0,0.00021643,3]
[347315285,1735681843375,-500.0,0.00021643,3]
[347315286,1735681843385,-500.0,0.00021643,3]
[347315287,1735681843394,-500.0,0.00021643,3]
[347315288,1735681843404,-535.38,0.00021643,3]
[347315289,1735681843413,-500.0,0.00021643,3]
[347315290,1735681843422,-1371.67,0.00021643,3]
[347315291,1735681843431,-501.04,0.00021643,3]
[347315292,1735681843441,-598.98,0.00021643,3]
[347315293,1735681843450,-500.0,0.00021643,3]
[347315294,1735681843459,-548.87,0.00021643,3]
[347315295,1735681843469,-500.0,0.00021643,3]
[347315296,1735681843478,-730.65,0.00021643,3]
[347315297,1735681843487,-530.04,0.00021643,3]
[347315298,1735681843496,-500.0,0.00021643,3]
[347315299,1735681843505,-500.0,0.00021643,3]
[347315300,1735681843514,-500.0,0.00021643,3]
[347315301,1735681843524,-500.0,0.00021643,3]
[347315302,1735681843533,-500.0,0.00021643,3]
[347315303,1735681843542,-1588.43,0.00021643,3]
[347315304,1735681843552,-500.0,0.00021643,3]
[347315305,1735681843561,-500.0,0.00021643,3]
[347315306,1735681843570,-500.0,0.00021643,3]
[347315307,1735681843580,-500.0,0.00021643,3]
[347315308,1735681843589,-500.0,0.00021643,3]
[347315309,1735681843598,-501.98,0.00021643,3]
[347315310,1735681843607,-730.1,0.00021643,3]
[347315311,1735681843616,-795.01,0.00021643,3]
[347315312,1735681843626,-20519.54,0.00021643,3]
[347315313,1735681843635,-500.0,0.00021643,3]
[347315314,1735681843644,-500.0,0.00021643,3]
[347315315,1735681843653,-836.29,0.00021643,3]
[347315316,1735681843662,-500.0,0.00021643,3]
[347315317,1735681843671,-500.0,0.00021643,3]
[347315318,1735681843681,-926.38,0.00021643,3]
[347315319,1735681843691,-683.0,0.00021643,3]
[347315320,1735681843700,-715.77,0.00021643,3]
[347315321,1735681843709,-511.31,0.00021643,3]
[347315322,1735681843719,-500.0,0.00021643,3]
[347315323,1735681843728,-1211.93,0.00021643,3]
[347315324,1735681843737,-521.15,0.00021643,3]
[347315325,1735681843747,-500.0,0.00021643,3]
[347315326,1735681843756,-802.62,0.00021643,3]
[347315327,1735681843765,-2700.84,0.00021643,3]
[347315328,1735681843774,-500.0,0.00021643,3]
[347315329,1735681843783,-500.0,0.00021643,3]
[347315330,1735681843792,-500.0,0.00021643,3]
[347315331,1735681843801,-612.25,0.00021643,3]
[347315332,1735681843811,-500.0,0.00021643,3]
[347315333,1735681843820,-500.0,0.00021643,3]
[347315334,1735681843829,-4674.97,0.00021643,3]
[347315335,1735681843839,-500.0,0.00021643,3]
[347315336,1735681843848,-522.2,0.00021643,3]
[347315337,1735681843857,-618.94,0.00021643,3]
[347315338,1735681843867,-500.0,0.00021643,3]
[347315339,1735681843876,-2189.99,0.00021643,3]
[347315340,1735681843885,-791.33,0.00021643,3]
[347315341,1735681843895,-500.0,0.00021643,3]
[347315342,1735681843904,-1039.41,0.00021643,3]
[347315343,1735681843913,-1645.65,0.00021643,3]
[347315344,1735681843923,-500.0,0.00021643,3]
[347315346,1735681843939,-500.0,0.00021643,3]
[347315348,1735681843950,-500.0,0.00021643,3]
[347315350,1735681843959,-500.0,0.00021643,3]
[347315351,1735681843969,-1047.88,0.00021643,3]
[347315352,1735681843979,-500.0,0.00021643,3]
[347315354,1735681843989,-500.0,0.00021643,3]
[347315356,1735681843997,-2742.12,0.00021643,3]
[347315357,1735681844007,-4620.02,0.00021643,3]
[347315358,1735681844017,-306.0,0.00021671,2]
[347315359,1735681844026,-10189.67419014,0.00021688,2]
[347315360,1735681844035,-9996.92393069,0.0002179,2]
[347315361,1735681844044,-5000.0,0.0002179,2]
[347315362,1735681844053,-5000.0,0.0002179,2]
[347315363,1735681844062,-5000.0,0.0002179,2]
[347315364,1735681844071,-5000.0,0.0002179,2]
[347315365,1735681844080,-158.281406,0.00021799,2]
[347315366,1735681844090,-4488.83,0.000218,2]
[347315367,1735681844099,-9072.32,0.000218,2]
[347315368,1735681844108,-600.0,0.0002184,2]
[347315369,1735681844117,-10189.67419014,0.00021862,2]
[347315370,1735681844126,-151.0,0.00021876,7]
[347315371,1735681844135,-500.0,0.00021889,2]
[347315372,1735681844145,-151.0,0.00021889,2]
[347315373,1735681844153,-1200.0,0.00021889,2]
[347315374,1735681844162,-151.008,0.00021889,2]
[347315375,1735681844171,-500.0,0.00021917,3]
[347315376,1735681844181,-500.0,0.00021917,3]
[347315377,1735681844190,-229.78166804,0.00021917,3]
[347315378,1735681844199,-500.0,0.00021917,3]
[347315379,1735681844208,-500.0,0.00021917,3]
[347315380,1735681844217,-600.3,0.00021917,3]
[347315381,1735681844226,-500.0,0.00021917,3]
[347315382,1735681844235,-500.0,0.00021917,3]
[347315383,1735681844244,-2869.51,0.00021917,3]
[347315384,1735681844254,-444.34774036,0.00021917,3]
[347315385,1735681844263,-500.0,0.00021917,3]
[347315386,1735681844274,-500.0,0.00021917,3]
[347315387,1735681844283,-500.0,0.00021917,3]
[347315388,1735681844292,-535.38,0.00021917,3]
[347315389,1735681844301,-500.0,0.00021917,3]
[347315390,1735681844310,-1000.0,0.00021917,5]
[347315391,1735681844319,-1000.0,0.00021917,5]
[347315392,1735681844328,-1000.0,0.00021917,5]
[347315393,1735681844337,-1000.0,0.00021917,5]
[347315394,1735681844347,-897.16489242,0.00021917,5]
[347315395,1735681844356,-1371.67,0.00021917,3]
[347315396,1735681844365,-501.04,0.00021917,3]
[347315397,1735681844374,-598.98,0.00021917,3]
[347315398,1735681844383,-500.0,0.00021917,3]
[347315399,1735681844391,-548.87,0.00021917,3]
[347315400,1735681844401,-500.0,0.00021917,3]
[347315401,1735681844410,-730.65,0.00021917,3]
[347315402,1735681844419,-530.04,0.00021917,3]
[347315403,1735681844430,-500.0,0.00021917,3]
[347315404,1735681844439,-500.0,0.00021917,3]
[347315405,1735681844450,-500.0,0.00021917,3]
[347315406,1735681844459,-500.0,0.00021917,3]
[347315407,1735681844468,-500.0,0.00021917,3]
[347315408,1735681844478,-1588.43,0.00021917,3]
[347315409,1735681844487,-561.58527846,0.00021917,3]
[347315410,1735681844497,-500.0,0.00021917,3]
[347315411,1735681844506,-500.0,0.00021917,3]
[347315412,1735681844516,-500.0,0.00021917,3]
[347315413,1735681844526,-500.0,0.00021917,3]
[347315414,1735681844535,-501.98,0.00021917,3]
[347315415,1735681844544,-730.1,0.00021917,3]
[347315416,1735681844554,-20519.54,0.00021917,3]
[347315417,1735681844564,-500.0,0.00021917,3]
[347315418,1735681844573,-500.0,0.00021917,3]
[347315419,1735681844583,-836.29,0.00021917,3]
[347315420,1735681844592,-500.0,0.00021917,3]
[347315421,1735681844601,-500.0,0.00021917,3]
[347315422,1735681844611,-926.38,0.00021917,3]
[347315423,1735681844620,-683.0,0.00021917,3]
[347315424,1735681844629,-715.77,0.00021917,3]
[347315425,1735681844639,-511.31,0.00021917,3]
[347315426,1735681844648,-500.0,0.00021917,3]
[347315427,1735681844657,-1211.93,0.00021917,3]
[347315428,1735681844666,-521.15,0.00021917,3]
[347315429,1735681844676,-500.0,0.00021917,3]
[347315430,1735681844685,-802.62,0.00021917,3]
[347315431,1735681844694,-2700.84,0.00021917,3]
[347315432,1735681844703,-500.0,0.00021917,3]
[347315433,1735681844712,-500.0,0.00021917,3]
[347315434,1735681844721,-500.0,0.00021917,3]
[347315435,1735681844731,-612.25,0.00021917,3]
[347315436,1735681844740,-500.0,0.00021917,3]
[347315437,1735681844749,-500.0,0.00021917,3]
[347315438,1735681844758,-500.0,0.00021917,3]
[347315439,1735681844768,-4674.97,0.00021917,3]
[347315440,1735681844778,-522.2,0.00021917,3]
[347315441,1735681844787,-618.94,0.00021917,3]
[347315442,1735681844796,-500.0,0.00021917,3]
[347315443,1735681844806,-2189.99,0.00021917,3]
[347315444,1735681844815,-791.33,0.00021917,3]
[347315445,1735681844825,-500.0,0.00021917,3]
[347315446,1735681844834,-1039.41,0.00021917,3]
[347315447,1735681844843,-1645.65,0.00021917,3]
[347315448,1735681844854,-500.0,0.00021917,3]
[347315449,1735681844863,-500.0,0.00021917,3]
[347315450,1735681844872,-500.0,0.00021917,3]
[347315451,1735681844881,-500.0,0.00021917,3]
[347315452,1735681844890,-1047.88,0.00021917,3]
[347315453,1735681844898,-500.0,0.00021917,3]
[347315454,1735681844907,-500.0,0.00021917,3]
[347315455,1735681844917,-2742.12,0.00021917,3]
[347315456,1735681844926,-4620.02,0.00021917,3]
[347315457,1735681844940,-165.33,0.0002192,2]
[347315458,1735681844950,-165.33,0.0002192,2]
[347315459,1735681844960,-165.33,0.0002192,2]
[347315460,1735681844969,-165.33,0.0002192,2]
[347315461,1735681844980,-10315.65651831,0.00021957,2]
[347315462,1735681844990,-10189.67419014,0.00022036,2]
[347315463,1735681844999,-158.281406,0.00022055,2]
[347315464,1735681845009,-600.0,0.00022065,2]
[347315465,1735681845018,-4663.45553629,0.00022091,2]
[347315466,1735681845028,-2000.0,0.000221,2]
[347315467,1735681845037,-2000.0,0.000221,2]
[347315468,1735681845046,-4663.45553622,0.00022124,2]
[347315469,1735681845056,-4663.45553622,0.00022156,2]
[347315470,1735681845066,-151.0,0.00022188,7]
[347315471,1735681845075,-4663.45553622,0.00022189,2]
[347315472,1735681845085,-151.0,0.00022191,7]
[347315473,1735681845095,-500.0,0.00022191,3]
[347315474,1735681845104,-500.0,0.00022191,3]
[347315475,1735681845201,-500.0,0.00022191,3]
[347315476,1735681845211,-500.0,0.00022191,3]
[347315477,1735681845220,-150.21,0.00022191,3]
[347315478,1735681845229,-600.3,0.00022191,3]
[347315479,1735681845238,-500.0,0.00022191,3]
[347315480,1735681845247,-500.0,0.00022191,3]
[347315481,1735681845257,-2869.51,0.00022191,3]
[347315482,1735681845266,-500.0,0.00022191,3]
[347315483,1735681845275,-500.0,0.00022191,3]
[347315484,1735681845284,-261.88837012,0.00022191,3]
[347315485,1735681845293,-535.38,0.00022191,3]
[347315486,1735681845302,-500.0,0.00022191,3]
[347315487,1735681845311,-1371.67,0.00022191,3]
[347315488,1735681845320,-501.04,0.00022191,3]
[347315489,1735681845329,-598.98,0.00022191,3]
[347315490,1735681845338,-500.0,0.00022191,3]
[347315491,1735681845346,-548.87,0.00022191,3]
[347315492,1735681845355,-500.0,0.00022191,3]
[347315493,1735681845364,-730.65,0.00022191,3]
[347315494,1735681845373,-530.04,0.00022191,3]
[347315495,1735681845382,-500.0,0.00022191,3]
[347315496,1735681845391,-500.0,0.00022191,3]
[347315497,1735681845400,-500.0,0.00022191,3]
[347315498,1735681845409,-500.0,0.00022191,3]
[347315499,1735681845418,-500.0,0.00022191,3]
[347315500,1735681845428,-1588.43,0.00022191,3]
[347315501,1735681845437,-500.0,0.00022191,3]
[347315502,1735681845446,-500.0,0.00022191,3]
[347315503,1735681845455,-500.0,0.00022191,3]
[347315504,1735681845464,-500.0,0.00022191,3]
[347315505,1735681845473,-501.98,0.00022191,3]
[347315506,1735681845482,-730.1,0.00022191,3]
[347315507,1735681845491,-20519.54,0.00022191,3]
[347315508,1735681845500,-500.0,0.00022191,3]
[347315509,1735681845509,-836.29,0.00022191,3]
[347315510,1735681845518,-500.0,0.00022191,3]
[347315511,1735681845527,-500.0,0.00022191,3]
[347315512,1735681845536,-500.0,0.00022191,3]
[347315513,1735681845546,-926.38,0.00022191,3]
[347315514,1735681845555,-683.0,0.00022191,3]
[347315515,1735681845563,-715.77,0.00022191,3]
[347315516,1735681845573,-511.31,0.00022191,3]
[347315517,1735681845583,-500.0,0.00022191,3]
[347315518,1735681845592,-1211.93,0.00022191,3]
[347315519,1735681845601,-521.15,0.00022191,3]
[347315520,1735681845611,-500.0,0.00022191,3]
[347315521,1735681845620,-802.62,0.00022191,3]
[347315522,1735681845630,-500.0,0.00022191,3]
[347315523,1735681845640,-150.21,0.00022191,2]
[347315524,1735681845650,-2700.84,0.00022191,3]
[347315525,1735681845660,-150.21,0.00022191,3]
[347315526,1735681845669,-150.21,0.00022191,3]
[347315527,1735681845679,-150.21,0.00022191,3]
[347315528,1735681845688,-500.0,0.00022191,3]
[347315529,1735681845699,-219.00326663,0.00022191,3]
[347315530,1735681845708,-500.0,0.00022191,3]
[347315531,1735681845717,-150.21,0.00022191,2]
[347315532,1735681845726,-500.0,0.00022191,3]
[347315533,1735681845735,-612.25,0.00022191,3]
[347315534,1735681845745,-150.21,0.00022191,3]
[347315535,1735681845754,-150.21,0.00022191,3]
[347315536,1735681845763,-150.21,0.00022191,2]
[347315537,1735681845772,-500.0,0.00022191,3]
[347315538,1735681845782,-500.0,0.00022191,3]
[347315539,1735681845791,-150.21,0.00022191,2]
[347315540,1735681845800,-500.0,0.00022191,3]
[347315541,1735681845809,-500.0,0.00022191,3]
[347315542,1735681845818,-500.0,0.00022191,3]
[347315543,1735681845827,-4674.97,0.00022191,3]
[347315544,1735681845837,-522.2,0.00022191,3]
[347315545,1735681845846,-618.94,0.00022191,3]
[347315546,1735681845855,-500.0,0.00022191,3]
[347315547,1735681845864,-2189.99,0.00022191,3]
[347315548,1735681845873,-791.33,0.00022191,3]
[347315549,1735681845883,-500.0,0.00022191,3]
[347315550,1735681845892,-1039.41,0.00022191,3]
[347315551,1735681845901,-1645.65,0.00022191,3]
[347315552,1735681845910,-500.0,0.00022191,3]
[347315553,1735681845919,-500.0,0.00022191,3]
[347315554,1735681845928,-500.0,0.00022191,3]
[347315555,1735681845941,-500.0,0.00022191,3]
[347315556,1735681845950,-1047.88,0.00022191,3]
[347315557,1735681845959,-500.0,0.00022191,3]
[347315558,1735681845968,-500.0,0.00022191,3]
[347315559,1735681845978,-2742.12,0.00022191,3]
[347315560,1735681845987,-4620.02,0.00022191,3]
[347315561,1735681845996,-10189.67419014,0.0002221,2]
[347315563,1735681846005,-4663.45553622,0.00022222,2]
[347315564,1735681846015,-4663.45553622,0.00022254,2]
[347315565,1735681846024,-472.6315432,0.00022275,2]
[347315566,1735681846033,-756.59218773,0.00022283,8]
[347315567,1735681846042,-4663.45553622,0.00022287,2]
[347315568,1735681846051,-1069.07296866,0.0002229,2]
[347315569,1735681846061,-151.0,0.000223,7]
[347315570,1735681846071,-180.69763039,0.00022319,2]
[347315571,1735681846080,-4663.45553622,0.0002232,2]
[347315572,1735681846089,-153.24,0.00022341,2]
[347315573,1735681846098,-4663.45553622,0.00022352,2]
[347315574,1735681846108,-10189.67419014,0.00022384,2]
[347315576,1735681846116,-4663.45553622,0.00022385,2]
[347315577,1735681846125,-1799.13,0.000224,14]
[347315578,1735681846134,-158.77,0.000224,31]
[347315579,1735681846143,-158.77,0.000224,31]
[347315580,1735681846152,-158.77,0.000224,31]
[347315581,1735681846161,-158.77,0.000224,31]
[347315582,1735681846171,-158.77,0.000224,31]
[347315583,1735681846180,-158.77,0.000224,31]
[347315584,1735681846190,-199.76833055,0.00022465,3]
[347315585,1735681846199,-500.0,0.00022465,3]
[347315586,1735681846208,-199.61,0.00022465,3]
[347315587,1735681846217,-199.61,0.00022465,3]
[347315588,1735681846227,-199.61,0.00022465,3]
[347315589,1735681846236,-150.21,0.00022465,2]
[347315590,1735681846245,-150.21,0.00022465,3]
[347315591,1735681846254,-199.63,0.00022465,3]
[347315592,1735681846263,-954.24,0.00022465,3]
[347315593,1735681846273,-950.74,0.00022465,3]
[347315594,1735681846282,-393.21949089,0.00022465,3]
[347315595,1735681846291,-500.0,0.00022465,3]
[347315596,1735681846300,-500.0,0.00022465,3]
[347315597,1735681846308,-500.0,0.00022465,3]
[347315598,1735681846318,-600.3,0.00022465,3]
[347315599,1735681846327,-500.0,0.00022465,3]
[347315600,1735681846336,-500.0,0.00022465,3]
[347315601,1735681846346,-2869.51,0.00022465,3]
[347315602,1735681846355,-500.0,0.00022465,3]
[347315603,1735681846365,-500.0,0.00022465,3]
[347315604,1735681846375,-535.38,0.00022465,3]
[347315605,1735681846384,-292.01276086,0.00022465,3]
[347315606,1735681846394,-1371.67,0.00022465,3]
[347315607,1735681846403,-501.04,0.00022465,3]
[347315608,1735681846412,-598.98,0.00022465,3]
[347315609,1735681846422,-500.0,0.00022465,3]
[347315610,1735681846431,-548.87,0.00022465,3]
[347315611,1735681846440,-500.0,0.00022465,3]
[347315612,1735681846449,-730.65,0.00022465,3]
[347315613,1735681846458,-530.04,0.00022465,3]
[347315614,1735681846468,-500.0,0.00022465,3]
[347315615,1735681846477,-500.0,0.00022465,3]
[347315616,1735681846486,-500.0,0.00022465,3]
[347315617,1735681846495,-500.0,0.00022465,3]
[347315618,1735681846504,-307.39387955,0.00022465,3]
[347315619,1735681846513,-1588.43,0.00022465,3]
[347315620,1735681846523,-500.0,0.00022465,3]
[347315621,1735681846531,-500.0,0.00022465,3]
[347315622,1735681846540,-500.0,0.00022465,3]
[347315623,1735681846549,-500.0,0.00022465,3]
[347315624,1735681846558,-501.98,0.00022465,3]
[347315625,1735681846567,-730.1,0.00022465,3]
[347315626,1735681846576,-20519.54,0.00022465,3]
[347315627,1735681846585,-500.0,0.00022465,3]
[347315628,1735681846595,-836.29,0.00022465,3]
[347315629,1735681846603,-500.0,0.00022465,3]
[347315630,1735681846613,-186.38620564,0.00022465,3]
[347315631,1735681846622,-500.0,0.00022465,3]
[347315632,1735681846631,-926.38,0.00022465,3]
[347315633,1735681846640,-683.0,0.00022465,3]
[347315634,1735681846649,-715.77,0.00022465,3]
[347315635,1735681846658,-511.31,0.00022465,3]
[347315636,1735681846667,-500.0,0.00022465,3]
[347315637,1735681846676,-1211.93,0.00022465,3]
[347315638,1735681846685,-521.15,0.00022465,3]
[347315639,1735681846694,-500.0,0.00022465,3]
[347315640,1735681846704,-802.62,0.00022465,3]
[347315641,1735681846713,-2700.84,0.00022465,3]
[347315642,1735681846722,-500.0,0.00022465,3]
[347315643,1735681846732,-500.0,0.00022465,3]
[347315644,1735681846741,-500.0,0.00022465,3]
[347315645,1735681846750,-612.25,0.00022465,3]
[347315646,1735681846759,-500.0,0.00022465,3]
[347315647,1735681846768,-500.0,0.00022465,3]
[347315648,1735681846778,-500.0,0.00022465,3]
[347315649,1735681846787,-4674.97,0.00022465,3]
[347315650,1735681846796,-522.2,0.00022465,3]
[347315651,1735681846805,-618.94,0.00022465,3]
[347315652,1735681846815,-500.0,0.00022465,3]
[347315653,1735681846824,-2189.99,0.00022465,3]
[347315654,1735681846832,-791.33,0.00022465,3]
[347315655,1735681846841,-500.0,0.00022465,3]
[347315656,1735681846851,-1039.41,0.00022465,3]
[347315657,1735681846860,-1645.65,0.00022465,3]
[347315658,1735681846869,-500.0,0.00022465,3]
[347315659,1735681846878,-500.0,0.00022465,3]
[347315660,1735681846887,-500.0,0.00022465,3]
[347315661,1735681846896,-500.0,0.00022465,3]
[347315662,1735681846905,-1047.88,0.00022465,3]
[347315663,1735681846915,-500.0,0.00022465,3]
[347315664,1735681846924,-500.0,0.00022465,3]
[347315665,1735681846936,-2742.12,0.00022465,3]
[347315666,1735681846945,-4620.02,0.00022465,3]
[347315667,1735681846955,-1000.0,0.00022478,2]
[347315668,1735681846964,-151.0,0.00022484,7]
[347315669,1735681846974,-151.0,0.00022484,7]
[347315670,1735681846983,-151.0,0.00022484,7]
[347315671,1735681846992,-151.0,0.00022484,7]
[347315672,1735681847001,-151.0,0.00022484,7]
[347315673,1735681847011,-385.804322,0.00022484,7]
[347315674,1735681847020,-385.804322,0.00022484,7]
[347315675,1735681847030,-385.804322,0.00022484,7]
[347315676,1735681847039,-385.804322,0.00022484,7]
[347315677,1735681847048,-385.804322,0.00022484,7]
[347315678,1735681847057,-385.804322,0.00022484,7]
[347315679,1735681847067,-385.804322,0.00022484,7]
[347315680,1735681847076,-385.804322,0.00022484,7]
[347315681,1735681847085,-204.18065,0.00022484,7]
[347315682,1735681847095,-385.804322,0.00022484,7]
[347315683,1735681847104,-204.18065,0.00022484,7]
[347315684,1735681847114,-204.18065,0.00022484,7]
[347315685,1735681847123,-385.804322,0.00022484,7]
[347315686,1735681847133,-204.18065,0.00022484,7]
[347315687,1735681847142,-385.804322,0.00022484,7]
[347315688,1735681847152,-204.18065,0.00022484,7]
[347315689,1735681847163,-385.804322,0.00022484,7]
[347315690,1735681847173,-204.18065,0.00022484,7]
[347315691,1735681847183,-385.804322,0.00022484,7]
[347315692,1735681847192,-385.804322,0.00022484,7]
[347315693,1735681847201,-204.18065,0.00022484,7]
[347315694,1735681847210,-385.804322,0.00022484,7]
[347315695,1735681847220,-204.18065,0.00022484,7]
[347315696,1735681847229,-204.18065,0.00022484,7]
[347315697,1735681847238,-385.804322,0.00022484,7]
[347315698,1735681847247,-185.310067,0.00022484,7]
[347315699,1735681847342,-204.18065,0.00022484,7]
[347315700,1735681847351,-385.804322,0.00022484,7]
[347315701,1735681847360,-185.310067,0.00022484,7]
[347315702,1735681847370,-204.18065,0.00022484,7]
[347315703,1735681847378,-385.804322,0.00022484,7]
[347315704,1735681847387,-185.310067,0.00022484,7]
[347315705,1735681847396,-204.18065,0.00022484,7]
[347315706,1735681847405,-385.804322,0.00022484,7]
[347315707,1735681847415,-204.18065,0.00022484,7]
[347315708,1735681847424,-204.18065,0.00022484,7]
[347315709,1735681847434,-185.310067,0.00022484,7]
[347315710,1735681847446,-204.18065,0.00022484,7]
[347315711,1735681847455,-185.310067,0.00022484,7]
[347315712,1735681847464,-204.18065,0.00022484,7]
[347315713,1735681847473,-204.18065,0.00022484,7]
[347315714,1735681847482,-185.310067,0.00022484,7]
[347315715,1735681847491,-204.18065,0.00022484,7]
[347315716,1735681847500,-204.18065,0.00022484,7]
[347315717,1735681847509,-204.180654,0.00022484,7]
[347315718,1735681847518,-385.80432,0.00022484,7]
[347315719,1735681847528,-151.0,0.00022484,7]
[347315720,1735681847537,-185.310067,0.00022484,7]
[347315721,1735681847546,-185.310069,0.00022484,7]
[347315722,1735681847555,-151.0,0.00022484,7]
[347315723,1735681847564,-151.0,0.00022484,7]
[347315724,1735681847573,-151.0,0.00022484,7]
[347315725,1735681847582,-151.0,0.00022484,7]
[347315726,1735681847591,-151.0,0.00022484,7]
[347315727,1735681847599,-151.0,0.00022484,2]
[347315728,1735681847609,-151.0,0.00022484,2]
[347315729,1735681847618,-151.0,0.00022484,2]
[347315730,1735681847627,-151.0,0.00022484,2]
[347315731,1735681847636,-151.0,0.00022484,2]
[347315732,1735681847645,-151.0,0.00022484,2]
[347315733,1735681847654,-151.0,0.00022484,2]
[347315734,1735681847663,-151.0,0.00022484,2]
[347315735,1735681847672,-288.088134,0.00022484,2]
[347315736,1735681847683,-185.80824,0.00022484,7]
[347315737,1735681847692,-185.80824,0.00022484,7]
[347315738,1735681847701,-185.80824,0.00022484,7]
[347315739,1735681847710,-185.808249,0.00022484,7]
[347315740,1735681847719,-306.351025,0.00022484,7]
[347315741,1735681847728,-306.351025,0.00022484,7]
[347315742,1735681847737,-306.351025,0.00022484,7]
[347315743,1735681847746,-306.351025,0.00022484,7]
[347315744,1735681847756,-306.351025,0.00022484,7]
[347315745,1735681847764,-306.351017,0.00022484,7]
[347315746,1735681847773,-151.0,0.00022484,7]
[347315747,1735681847782,-151.0,0.00022484,7]
[347315748,1735681847791,-151.0,0.00022484,7]
[347315749,1735681847800,-151.0,0.00022484,7]
[347315750,1735681847809,-151.0,0.00022484,7]
[347315751,1735681847818,-151.0,0.00022484,7]
[347315752,1735681847826,-151.0,0.00022484,7]
[347315753,1735681847835,-151.0,0.00022484,7]
[347315754,1735681847844,-341.763375,0.00022484,7]
[347315755,1735681847854,-151.0,0.00022484,7]
[347315756,1735681847863,-151.0,0.00022484,7]
[347315757,1735681847872,-274.174494,0.00022484,7]